Cogmind - Beta 16.1 @@@ ROGUE MODE // 2026.04.19 @ 23:13:41 Player: FloorSandwich Result: Destroyed by L-31 Rogue with Katana Performance ------------- Evolutions (1) 500 Regions Visited (3) 600 Robots Destroyed (25) 125 Value Destroyed (588) 588 Prototype IDs (1) 20 Alien Tech Used (0) 0 Bonus (0) 0 TOTAL SCORE: 1833 Bonus ------- None Cogmind --------- Core Integrity 0/400 Matter 171/300 Energy 53/100 System Corruption 0% Temperature Danger (499) Movement Hovering (160) Ox1 Location -9/Materials Parts ------- > --- POWER (1) -------- (None) > --- PROPULSION (2) --- Backup Propulsion I > --- UTILITY (4) ------ Small Storage Unit Signal Interpreter Utility Shielding > --- WEAPON (2) ------- Hammer > --- INVENTORY (8) ---- (None) Peak State ------------ > --- POWER ------------ Light Nuclear Core > --- PROPULSION ------- Aluminum Leg Aluminum Leg > --- UTILITY ---------- Small Storage Unit Signal Interpreter Improved Terrain Scanner Utility Shielding > --- WEAPON ----------- Advanced Beam Cannon Advanced Beam Cannon > --- INVENTORY -------- Backup Propulsion I Beam Rifle Beam Rifle Beam Rifle Hammer [Rating: 17] Favorites ----------- Power Light Nuclear Core Engine Ion Engine Power Core Light Nuclear Core Propulsion Aluminum Leg Leg Aluminum Leg Hover Unit Backup Propulsion I Utility Small Storage Unit Device Improved Terrain Scanner Storage Small Storage Unit Processor Signal Interpreter Protection Utility Shielding Weapon Medium Laser Energy Gun Medium Laser Energy Cannon Advanced Beam Cannon Ballistic Gun Light Assault Rifle Impact Weapon Hammer Build | -11 -10 -10 -9 ------- Run | Yrd Mat Min Mat Slots Evolved 2 | . . . 2 Power . | . . . . Propulsion . | . . . . Utility 2 | . . . 2 Weapon . | . . . . Parts Attached 25 | 7 4 . 14 Power 3 | 1 1 . 1 Engine 1 | 1 . . . Core 2 | . 1 . 1 Reactor . | . . . . Propulsion 7 | 2 2 . 3 Treads . | . . . . Leg 6 | 2 2 . 2 Wheel . | . . . . Hover 1 | . . . 1 Flight . | . . . . Utility 4 | 2 . . 2 Device 1 | 1 . . . Storage 1 | 1 . . . Processor 1 | . . . 1 Hackware . | . . . . Protection 1 | . . . 1 Artifact . | . . . . Weapon 11 | 2 1 . 8 Energy Gun 6 | 1 . . 5 Energy Cannon 2 | . . . 2 Ballistic Gun 2 | 1 1 . . Ballistic Cannon . | . . . . Launcher . | . . . . Special Weapon . | . . . . Impact Weapon 1 | . . . 1 Slashing Weapon . | . . . . Piercing Weapon . | . . . . Special Melee Weapon . | . . . . Unidentified Prototypes 1 | . . . 1 Parts Lost 9 | . 1 . 8 Power 2 | . . . 2 Propulsion 3 | . . . 3 Utility 1 | . . . 1 Weapon 3 | . 1 . 2 Highest Loss Streak 5 | . 1 . 5 To Critical Strikes . | . . . . Average Backups 3 | 1 2 4 3 Power . | . . 1 . Propulsion . | . . 1 1 Utility . | . . 1 . Weapon 1 | . 1 1 2 Tool/Special . | . . . . Unused Backups 1 | . . . 1 Power . | . . . . Propulsion . | . . . . Utility . | . . . . Weapon 1 | . . . 1 Tool/Special . | . . . . Average Slot Usage (%) 96 | . 99 100 89 Engine 1 | . 5 . . Core 11 | . 8 14 10 Leg 24 | . 26 28 19 Device 12 | . 14 14 7 Storage 13 | . 14 14 11 Processor 3 | . . . 11 Protection 2 | . . . 8 Energy Gun 12 | . 14 14 8 Energy Cannon 2 | . . . 9 Ballistic Gun 10 | . 14 14 2 Peak Build Rating 17 | 9 11 11 17 Average Rating 11 | 7 10 11 13 On Entrance 7 | . 9 11 11 Avg Prop Armor Cover (%) 10 | . 10 . . Naked Turns . | . . . . Heaviest Build 20 | 15 15 14 20 Greatest Support 20 | 20 20 20 20 Greatest Overweight (x) 4 | . 2 . 4 Average Overweight (x) . | . . . . Largest Inventory Capacity 8 | 8 8 8 8 Average Capacity 7 | 7 8 8 8 Most Carried 6 | 5 4 4 6 Average Carried 3 | 1 2 4 3 Final Capacity 8 | 8 8 8 8 Final Carried 4 | 1 4 4 . Class Distribution -------------------- 67% | Scavenger-Mutant 32% | Mutant Dominant Class ---------------- Scavenger-Mutant | -10/Materials Scavenger-Mutant | -10/Mines Scavenger-Mutant | -9/Materials Resources | -11 -10 -10 -9 ----------- Run | Yrd Mat Min Mat Matter Collected 554 | 159 178 102 115 Remotely . | . . . . Salvage Created 1000 | 64 313 20 603 Parts 58 | 10 14 2 32 Haulers Intercepted 2 | . 1 . 1 Recyclers Shooed 3 | . 2 . 1 Parts Field Recycled . | . . . . Retrieved Matter . | . . . . Parts Self-Destructed . | . . . . Prevented . | . . . . Parts Restored . | . . . . Kills | -11 -10 -10 -9 ------- Run | Yrd Mat Min Mat Combat Hostiles Destroyed 17 | . 4 1 12 Guns 12 | . 4 1 7 Cannons 5 | . . . 5 Classes Destroyed 7 | 1 3 1 2 Worker 1 | . . . 1 Tunneler 3 | 3 . . . Hauler 2 | . 1 . 1 Recycler 2 | . 1 . 1 Swarmer 4 | . . 1 3 Grunt 11 | . 4 . 7 Sentry 2 | . . . 2 Best Kill Streak 6 | 3 2 1 6 Combat Bots Only 6 | . 2 1 6 Max Kills in Single Turn 1 | 1 1 1 1 Gunslinging . | . . . . Exploded . | . . . . Melee . | . . . . Uniques/NPCs Destroyed . | . . . . Combat | -11 -10 -10 -9 -------- Run | Yrd Mat Min Mat Hostile Shots Fired 146 | . 29 8 109 Missed 27 | . 4 3 20 Hits 119 | . 25 5 89 Melee 10 | . . . 10 Projectile 109 | . 25 5 79 Critical Strikes 2 | . 1 . 1 Damage Taken 1625 | . 352 65 1208 Core 444 | . 25 8 411 Absorbed by Shields . | . . . . Redirected to Shielding 13 | . . . 13 Regen/Repaired (Parts) 20 | . 20 . . Core Remaining (%) 93 | 100 . 86 . Volleys Fired 112 | 11 35 17 49 Largest 2 | 2 2 2 2 Hottest 136 | 70 70 70 136 Shots Fired 213 | 22 69 33 89 Gun 164 | 22 69 33 40 Cannon 49 | . . . 49 Launcher . | . . . . Special . | . . . . Kinetic 62 | 11 34 17 . Thermal 151 | 11 35 16 89 Explosive . | . . . . Electromagnetic . | . . . . Robot Hit Streak 13 | 3 13 5 9 Robot Miss Streak 5 | 5 4 2 4 Penetration Max . | . . . . Secondary Targets 2 | . . 1 1 Max Gunslinging Chain 1 | . . 1 1 Shots Hit Robots 116 | 11 45 9 51 Core Hits 35 | 3 13 2 17 Critical Kills . | . . . . Critical Parts Destroyed 1 | . 1 . . Critical Strikes 7 | . 3 2 2 Burn 6 | . 2 2 2 Destroy 1 | . 1 . . Melee Attacks . | . . . . Impact . | . . . . Slashing . | . . . . Piercing . | . . . . Sneak Attacks . | . . . . Combat Hostiles . | . . . . Follow-up Attacks . | . . . . Damage Inflicted 1700 | 137 526 90 947 Guns 1101 | 137 526 90 348 Cannons 595 | . . . 595 Explosions . | . . . . Melee . | . . . . Ramming 4 | . . . 4 Kinetic 344 | 73 232 39 . Thermal 1352 | 64 294 51 943 Explosive . | . . . . Electromagnetic . | . . . . Impact . | . . . . Slashing . | . . . . Piercing . | . . . . Highest Corruption . | . . . . Average Corruption . | . . . . Corruption Purged . | . . . . Corruption Blocked . | . . . . Overload Shots . | . . . . Overflow Damage 10 | . . . 10 Projectiles 10 | . . . 10 Explosions . | . . . . Melee . | . . . . Knockbacks . | . . . . Impact . | . . . . Kinetic . | . . . . Secondary . | . . . . Self-Inflicted Damage . | . . . . Shots . | . . . . Rammed . | . . . . Targets Rammed 2 | . . . 2 Kicked 2 | . . . 2 Crushed . | . . . . Highest Temperature 657 | 63 240 180 657 Average Temperature 148 | 27 91 96 212 Received Heat Transfer 561 | . 222 18 321 Effects 17 | . . . 17 Shutdowns 3 | . . . 3 Interference 2 | . . . 2 Matter Decay 2 | . . . 2 Short Circuit 2 | . . . 2 Damage (minor) 2 | . . . 2 Damage (major) 5 | . . . 5 Damage (core) 1 | . . . 1 Siege Activations . | . . . . Martial Activations . | . . . . Shielding Activations . | . . . . Robots Disrupted . | . . . . Combat Hostiles . | . . . . Robots Corrupted . | . . . . Combat Hostiles . | . . . . Parts Fried . | . . . . Impact Corruptions . | . . . . Robots Melted 1 | . . . 1 Combat Hostiles . | . . . . Parts Melted 13 | . 3 1 9 Heat Transferred 3626 | 185 1036 296 2109 Parts Sabotaged . | . . . . Parts Stolen . | . . . . Parts Stripped . | . . . . Power Chain Reactions . | . . . . Alert | -11 -10 -10 -9 ------- Run | Yrd Mat Min Mat Maximum Alert Level . | . . . . Low Security (%) 100 | 100 100 100 100 Level 1 . | . . . . Level 2 . | . . . . Level 3 . | . . . . Level 4 . | . . . . Level 5 . | . . . . High Security . | . . . . Max Security . | . . . . Peak Influence 140 | 15 40 20 140 Initial . | . . . . Average 23 | 1 7 . 80 Influence Increases 509 | 15 115 20 359 Destroy 0b10 Robot/C 340 | . 80 20 240 Destroy 0b10 Robot/NC 40 | 15 10 . 15 Destroy Leader 74 | . 22 . 52 Successful Hack 8 | . 3 . 5 Disable Machine 30 | . . . 30 Destroy Structure 2 | . . . 2 Lose Combat Pursuer 15 | . . . 15 Influence Decreases 416 | 15 115 20 266 Time Decay 326 | 15 105 20 186 Lost Part 90 | . 10 . 80 Squads Dispatched 6 | . 2 1 3 Investigation 4 | . 1 1 2 Extermination . | . . . . Reinforcement 2 | . 1 . 1 Assault . | . . . . Garrison . | . . . . Intercept . | . . . . Searches Triggered . | . . . . Construction Impeded . | . . . . Haulers Reinforced . | . . . . Active Scanning Responses . | . . . . Cargo Convoy Interrupts . | . . . . Stealth | -11 -10 -10 -9 --------- Run | Yrd Mat Min Mat Distress Signals 1 | . . . 1 Communications Jammed . | . . . . Distress Signals . | . . . . Times Spotted 38 | . 9 4 25 Peak Tracking Total 5 | . 2 3 5 Tactical Retreats 1 | . . . 1 Traps | -11 -10 -10 -9 ------- Run | Yrd Mat Min Mat Traps Triggered 1 | . 1 . . Indirectly . | . . . . Trap Hack Attempts . | . . . . Triggered . | . . . . Disarmed . | . . . . Reprogrammed . | . . . . Reused . | . . . . Traps Extracted . | . . . . Installed . | . . . . Triggered . | . . . . Machines | -11 -10 -10 -9 ---------- Run | Yrd Mat Min Mat Machines Disabled 2 | . . . 2 Max in Single Turn 1 | . . . 1 Machines Repaired . | . . . . Machines Dismantled . | . . . . Machines Sabotaged . | . . . . Overloaded Fab Kills . | . . . . Hacking | -11 -10 -10 -9 --------- Run | Yrd Mat Min Mat Machines Accessed 9 | . 5 2 2 Terminals 6 | . 2 2 2 Fabricators . | . . . . Repair Stations 1 | . 1 . . Recycling Units 2 | . 2 . . Scanalyzers . | . . . . Garrison Access . | . . . . Total Hacks 26 | . 12 6 8 Successful 8 | . 7 . 1 Failed 18 | . 5 6 7 Catastrophic 5 | . . 3 2 Database Lockouts . | . . . . Manual 12 | . 1 6 5 Terminals 17 | . 3 6 8 Fabricators . | . . . . Repair Stations 6 | . 6 . . Recycling Units 3 | . 3 . . Scanalyzers . | . . . . Garrison Access . | . . . . Terminal Hacks 3 | . 2 . 1 Hauler Manifests 1 | . . . 1 Zone Layout 2 | . 2 . . Fabricator Hacks . | . . . . Repair Station Hacks 3 | . 3 . . Scan Component 1 | . 1 . . Repair 1 | . 1 . . Refit 1 | . 1 . . Recycling Unit Hacks 2 | . 2 . . Report Inventory 1 | . 1 . . Retrieve Components 1 | . 1 . . Scanalyzer . | . . . . Garrison Access Hacks . | . . . . Unauthorized Hacks . | . . . . Terminals . | . . . . Fabricators . | . . . . Repair Stations . | . . . . Recycling Units . | . . . . Scanalyzers . | . . . . Garrison Access . | . . . . Data Cores Recovered . | . . . . Used . | . . . . Hacking Detections 5 | . 1 2 2 Full Trace Events 4 | . . 2 2 Feedback Events . | . . . . Feedback Blocked . | . . . . Robot Schematics Acquired . | . . . . Robots Built . | . . . . Authchips . | . . . . Time . | . . . . Total Robot Build Rating . | . . . . Part Schematics Acquired . | . . . . Parts Built . | . . . . Authchips . | . . . . Time . | . . . . Total Part Build Rating . | . . . . Part Studies Acquired . | . . . . Parts Repaired 1 | . 1 . . Time 26 | . 26 . . Parts Recycled . | . . . . Recycled Matter . | . . . . Retrieved Matter . | . . . . Retrieved Components 5 | . 5 . . Parts Scanalyzed . | . . . . Part Schematics Acquired . | . . . . Parts Damaged . | . . . . Bothacking | -11 -10 -10 -9 ------------ Run | Yrd Mat Min Mat Used RIF Installer . | . . . . Robots Hacked . | . . . . Non-combat . | . . . . Combat . | . . . . Robot Hacks Applied . | . . . . Relay Couplers Released . | . . . . Fabnet Peak Effective % . | . . . . Robots Rewired . | . . . . Allies Hacked . | . . . . Hacks Repelled . | . . . . Allies | -11 -10 -10 -9 -------- Run | Yrd Mat Min Mat Total Allies . | . . . . Largest Group . | . . . . Highest-Rated Group . | . . . . Highest-Rated Ally . | . . . . Total Orders . | . . . . Ally Attacks . | . . . . Total Damage . | . . . . Kills . | . . . . Allies Corrupted . | . . . . Allies Melted . | . . . . Intel | -11 -10 -10 -9 ------- Run | Yrd Mat Min Mat Active Infowar (turns) 1732 | 165 515 696 356 Terrain 1732 | 165 515 696 356 Robot Analysis Total . | . . . . Derelict Logs Recovered . | . . . . Drone Launches . | . . . . Drone Recoveries . | . . . . Exploration | -11 -10 -10 -9 ------------- Run | Yrd Mat Min Mat Turns Passed 1985 | 245 515 696 529 Spaces Moved 842 | 51 293 250 248 Core 21 | 20 . . 1 Treads . | . . . . Legs 815 | 31 287 250 247 Wheels . | . . . . Hover 6 | . 6 . . Flight . | . . . . Fastest Speed 50 | 50 120 120 120 Average Speed 123 | 92 122 120 133 Slowest Speed 250 | 120 250 120 250 Overloaded Moves . | . . . . Propulsion Burnouts . | . . . . Robots Hopped . | . . . . Potential Cave-ins . | . . . . Cave-ins Triggered . | . . . . Exploration Rate (%) 22 | 4 35 35 14 Regions Visited 3 Branch Regions 1 Pre-discovered Areas . | . . . . Known Exits Taken . | . . . . Unknown Exits Taken 3 | 1 1 1 . Scrap Searched . | . . . . Spaces Dug . | . . . . Terrain Destroyed . | . . . . Melee . | . . . . Projectile . | . . . . AOE . | . . . . Terrain Rammed . | . . . . Walls Destroyed . | . . . . Machines Disabled . | . . . . Actions | -11 -10 -10 -9 --------- Run | Yrd Mat Min Mat Total 1582 | 227 383 616 356 Wait 561 | 151 40 350 20 Move 839 | 50 292 249 248 Hop . | . . . . Pick Up 26 | 8 7 . 11 Fast Attach . | . . . . Attach 18 | 7 2 . 9 Detach 2 | . 1 . 1 Swap 11 | . 3 . 8 Drop 11 | . 3 . 8 Fire 112 | 11 35 17 49 Melee . | . . . . Ram . | . . . . Kick 2 | . . . 2 Crush . | . . . . Escape Stasis . | . . . . Rewire . | . . . . Trap . | . . . . Miscellaneous . | . . . . Route ------- -11/Scrapyard -10/Materials (discovered 2 exits: Mat / *Min) -10/Mines -9/Materials History --------- Turn | Location | Event 5 | -11/Scrapyard | Discovered new exit (range 16) 246 | -11/Scrapyard | Entered Materials 304 | -10/Materials | Build established: Mutant 381 | -10/Materials | Discovered new exit (range 14) 574 | -10/Materials | Repaired Aluminum Leg 679 | -10/Materials | Discovered new exit (range 7) 761 | -10/Materials | Entered Mines 762 | -10/Mines | Assembled infested the area 767 | -10/Mines | Assisted by a Guerilla fighting off Assembled 877 | -10/Mines | Build established: Scavenger-Mutant 1373 | -10/Mines | Discovered new exit (range 12) 1457 | -10/Mines | Entered Materials 1457 | -9/Materials | Evolved 2 slots: Utility x2 1975 | -9/Materials | Core integrity fell below 50% 1982 | -9/Materials | Core integrity fell below 20% 1986 | -9/Materials | Destroyed by L-31 Rogue with Katana Last Messages --------------- (-7). 01970_ Overheating: Utility Shielding damaged (-14). 01970_ Overheating: Sml. Storage Unit damaged (-60). 01971_ Lgt. Nuclear Core destroyed. 01971_ Aluminum Leg destroyed. 01972_ K-01 Serf collects debris. 01975_ Overheating: Core damaged (-48). 01976_ Overheating: Adv. Beam Cannon damaged (-20). 01976_ Adv. Beam Cannon destroyed. 01977_ K-01 Serf collects debris. 01978_ Overheating: Matter decay (-58). 01978_ G-34 Mercenary destroyed. 01981_ Overheating: Matter decay (-46). 01981_ K-01 Serf collects debris. 01984_ Overheating: Beam Rifle damaged (-18). 01984_ Beam Rifle destroyed. 01985_ K-01 Serf collects debris. Map ----- +----------------------------------------------------+ | ?????????????????????????????????????????????????? | | ?????????????????????????????????????????????????? | | ?????????????????????????????????????????????????? | | ?????????????????????????????????????????????????? | | ?????????????????????????????????????????????????? | | ?????????????????????????????????????????????????? | | ?????????????????????????????????????????????????? | | ?????????????????????????????????????????????????? | | ?????????????????????????????????????????????????? | | ?????????????????????????????????????????????????? | | ???????? ????????????????????????????????????????? | | ?????????????????????????????????????????????????? | | ?????????????#???????????????????????????????????? | | ???????? ?????????#???????"??????????????????????? | | ???? ???????#???#???????????? ???????????????????? | | ?? ?? ??????????#?########+######?#+?????????????? | | ?????????? ?????? ? ? ??????????????? | | ????????????????????? ?? ???????????????? | | ??????#??????? ??? ? ? % ??? ????????????????? | | ???????#???????#???#??###+####+##????????????????? | | ?????????????????#????# = #????????????????? | | ????????????? ???? ???# #? ? ##?????????? | | ??????????????????????# g=%!u # ???????? | | ???????? ??????????## ]! [ u ????????? | | ???????# ############k l% a # ????????? | | ?????"?# #![ =!=%[=## @[[ w #??? ??#?????????? | | ???"?"?# #![ [*""%%## [[[w ##???#???????????? | | ???????+ # =="""=## %[ #?????????#??????? | | ??"????# # """%########+###???#????#???????? | | "??????# + =*%##?????# ##?????????????????? | | ?? ?? # # ""T"" *#?????## #???#?????#????#???? | | ???????# # """"" ######## ############???????? | | ???#???# # %+ % ! ????? | | ???????# ######+######## #####???????????? | | ???????# #?#??# #?????## %"" ########????????? | | ?#?????# #?#??# ###???## ""% # #???###??? | | ?????#?# #?#?## #????###= ""% # """ #???#?#??? | | #??????# ###### ######## # """ #????????? | | ######## %/ """ #??#?????? | | * ! # ################"T"## # #????????? | | !! # #???#?#?#??#???###### # #?????? ?? | | ! # #???????#?#?#???????#%########????#???? | | # #???##????#?????????#%#??#????????????? | | [+ #??#????????#??###### ###??????#??????? | | # #?????????????##! #????##???????? | | = # #?????????????#! ### ###?????? | | # #??#???#?????##! " ? | | # #?????????#???#! ### #???????? | | ######## #??????#??????#! #????##???????? | | ??????## #?????????????##! ##% ##?????????????? | +----------------------------------------------------+ Best States ------------- Heat Dissipation 28 Energy Generation 14 Energy Capacity 250 Matter Stores 300 Matter Capacity 300 Sight Range 16 Terrain Scan Range 16 Terrain Scan Density 10 Utility Shielding 33 Evasion (%) 55 Item Schematics ----------------- None Robot Schematics ------------------ None Fabricated ------------ Nothing Repaired ---------- Aluminum Leg | 77% | -10/Materials Studied --------- None Alien Tech Used ----------------- None Achievements -------------- Fitting Room Challenges ------------ None Game ------ Seed NetworkedReactiveBay Manual? 0 Play Time 00:12:54 Cumulative 17.4 hours Start 2026.04.19 @ 23:01:33 End 2026.04.19 @ 23:13:41 Sessions 1 Manual Loads 0 Difficulty Rogue Special Mode None Game No. 61 Rogue 61 Adventurer 0 Explorer 0 Win Type - Total 0 Types 0/0/0/0/0/0/0/0/0/0 Lore% 7 Gallery% 15 Achievement% 14 Wizard Run 0 Options --------- Layout 1 ASCII 0 Keyboard 0 Movement Arrows Keybinds 0 Fullscreen 1 Font 24/Tamsyn Map View 50x35 Zoom Use 0% Tactical HUD 1 Map Filters NONE Filters NONE Steam 1 RUN: 8074ffe9-4a5e-4e73-8571-d33f0fe23491